[Event "*** Titled Tuesday 3|2 Blitz"]
[Site "Chess.com"]
[Date "2017.06.06"]
[Round "5"]
[White "yurisolo"]
[Black "Margency"]
[Result "1-0"]
[WhiteElo "2487"]
[BlackElo "2538"]
[TimeControl "180+2"]
[EndTime "14:51:59 PDT"]
[Termination "yurisolo won by checkmate"]

1. e4 {[%clk 0:03:02]} 1... d5 {[%clk 0:03:00.2]} 2. exd5 {[%clk 0:03:02.7]}
2... Qxd5 {[%clk 0:03:01.1]} 3. Nc3 {[%clk 0:03:03.9]} 3... Qd6 {[%clk
0:03:02.5]} 4. d4 {[%clk 0:03:04.3]} 4... Nf6 {[%clk 0:03:04.1]} 5. Nf3 {[%clk
0:03:04.3]} 5... c6 {[%clk 0:03:05.2]} 6. Ne5 {[%clk 0:03:03.1]} 6... Nbd7
{[%clk 0:03:05.2]} 7. Nc4 {[%clk 0:03:02.8]} 7... Qc7 {[%clk 0:03:06]} 8. Qf3
{[%clk 0:03:03]} 8... Nb6 {[%clk 0:03:07.2]} 9. Bf4 {[%clk 0:03:02.8]} 9... Qd7
{[%clk 0:03:08.4]} 10. Nxb6 {[%clk 0:02:48.9]} 10... axb6 {[%clk 0:03:09]} 11.
O-O-O {[%clk 0:02:50.8]} 11... e6 {[%clk 0:03:09.9]} 12. Be5 {[%clk 0:02:49.3]}
12... Be7 {[%clk 0:03:10.3]} 13. h4 {[%clk 0:02:45.7]} 13... b5 {[%clk
0:03:00.5]} 14. h5 {[%clk 0:02:37.8]} 14... h6 {[%clk 0:02:59.9]} 15. Rh3 {[%clk
0:02:15.7]} 15... b4 {[%clk 0:02:57.3]} 16. Ne4 {[%clk 0:02:13.6]} 16... Qd5
{[%clk 0:02:52.2]} 17. Bxf6 {[%clk 0:01:52.8]} 17... gxf6 {[%clk 0:02:52]} 18.
Nxf6+ {[%clk 0:01:49.6]} 18... Bxf6 {[%clk 0:02:52.8]} 19. Qxf6 {[%clk
0:01:51.5]} 19... Rf8 {[%clk 0:02:52.5]} 20. Qxh6 {[%clk 0:01:40.2]} 20... Rxa2
{[%clk 0:02:44.7]} 21. Qf4 {[%clk 0:01:32.2]} 21... Qa5 {[%clk 0:02:35.9]} 22.
Bd3 {[%clk 0:01:06.1]} 22... b3 {[%clk 0:02:23.6]} 23. c3 {[%clk 0:01:02.8]}
23... Rxb2 {[%clk 0:02:15.5]} 24. Kxb2 {[%clk 0:00:55.3]} 24... Qa2+ {[%clk
0:02:16.2]} 25. Kc1 {[%clk 0:00:55.8]} 25... b2+ {[%clk 0:02:17.4]} 26. Kd2
{[%clk 0:00:56.7]} 26... b1=Q+ {[%clk 0:02:18.3]} 27. Ke1 {[%clk 0:00:57.4]}
27... Qbb2 {[%clk 0:02:10.6]} 28. h6 {[%clk 0:00:53.2]} 28... Qxc3+ {[%clk
0:02:08.1]} 29. Kf1 {[%clk 0:00:51.9]} 29... Qa4 {[%clk 0:01:52.8]} 30. Be2
{[%clk 0:00:52]} 30... Qcc2 {[%clk 0:01:45]} 31. Re1 {[%clk 0:00:52.1]} 31... b6
{[%clk 0:01:14.8]} 32. h7 {[%clk 0:00:47.5]} 32... Ba6 {[%clk 0:01:15.2]} 33.
h8=Q {[%clk 0:00:39]} 33... Qxe2+ {[%clk 0:01:13.1]} 34. Kg1 {[%clk 0:00:34.3]}
34... Qxe1+ {[%clk 0:01:13.4]} 35. Kh2 {[%clk 0:00:35.3]} 35... Rxh8 {[%clk
0:00:28.7]} 36. Rxh8+ {[%clk 0:00:35.1]} 36... Ke7 {[%clk 0:00:21.1]} 37. Qg5+
{[%clk 0:00:35.8]} 37... Kd6 {[%clk 0:00:18.9]} 38. Qd8# {[%clk 0:00:34.6]} 1-0

[Event "*** Titled Tuesday 3|2 Blitz"]
[Site "Chess.com"]
[Date "2017.06.06"]
[Round "5"]
[White "aa175"]
[Black "TamNguyen2"]
[Result "1/2-1/2"]
[WhiteElo "1870"]
[BlackElo "2110"]
[TimeControl "180+2"]
[EndTime "14:52:08 PDT"]
[Termination "Game drawn by repetition"]

1. e4 {[%clk 0:03:02]} 1... c5 {[%clk 0:02:57.6]} 2. Nf3 {[%clk 0:03:03.5]} 2...
g6 {[%clk 0:02:54.9]} 3. c3 {[%clk 0:03:00.7]} 3... d5 {[%clk 0:02:52.3]} 4. e5
{[%clk 0:02:58.6]} 4... d4 {[%clk 0:02:51.8]} 5. Bc4 {[%clk 0:02:57.5]} 5... Nc6
{[%clk 0:02:51.6]} 6. d3 {[%clk 0:02:56.2]} 6... Bg7 {[%clk 0:02:40.8]} 7. e6
{[%clk 0:02:51.1]} 7... Bxe6 {[%clk 0:02:39.7]} 8. Bxe6 {[%clk 0:02:51.7]} 8...
fxe6 {[%clk 0:02:41.6]} 9. Qe2 {[%clk 0:02:49.5]} 9... Qd5 {[%clk 0:02:31.8]}
10. c4 {[%clk 0:02:49]} 10... Qd6 {[%clk 0:02:30.8]} 11. Nbd2 {[%clk 0:02:46.1]}
11... Nf6 {[%clk 0:02:28.1]} 12. O-O {[%clk 0:02:43.1]} 12... O-O {[%clk
0:02:22.8]} 13. Re1 {[%clk 0:02:44.1]} 13... e5 {[%clk 0:02:22.6]} 14. Ne4
{[%clk 0:02:41.3]} 14... Nxe4 {[%clk 0:02:22.6]} 15. Qxe4 {[%clk 0:02:43.2]}
15... b6 {[%clk 0:02:16.3]} 16. Bg5 {[%clk 0:02:34.5]} 16... Rae8 {[%clk
0:02:10.4]} 17. Bh4 {[%clk 0:02:32.2]} 17... Rf5 {[%clk 0:02:06.4]} 18. Bg3
{[%clk 0:02:31.2]} 18... Ref8 {[%clk 0:01:59.8]} 19. Re2 {[%clk 0:02:28.9]}
19... e6 {[%clk 0:01:51.1]} 20. Ree1 {[%clk 0:01:30.2]} 20... g5 {[%clk
0:01:33.6]} 21. h3 {[%clk 0:01:20.9]} 21... h5 {[%clk 0:01:31.9]} 22. Qe2 {[%clk
0:01:15.8]} 22... Kh7 {[%clk 0:01:12.1]} 23. Nd2 {[%clk 0:01:13]} 23... Kg6
{[%clk 0:01:11]} 24. Ne4 {[%clk 0:01:11]} 24... Qd7 {[%clk 0:01:09]} 25. h4
{[%clk 0:00:51.1]} 25... g4 {[%clk 0:01:02]} 26. Kh2 {[%clk 0:00:37]} 26... Nd8
{[%clk 0:01:01.6]} 27. Rh1 {[%clk 0:00:32.7]} 27... Nf7 {[%clk 0:01:02]} 28.
Rhf1 {[%clk 0:00:31.2]} 28... Nd6 {[%clk 0:01:02.2]} 29. Rae1 {[%clk 0:00:28.6]}
29... Nf7 {[%clk 0:00:57.7]} 30. Rg1 {[%clk 0:00:26.1]} 30... Bh6 {[%clk
0:00:58.5]} 31. f3 {[%clk 0:00:26.9]} 31... gxf3 {[%clk 0:00:46.8]} 32. gxf3
{[%clk 0:00:27.4]} 32... Kh7 {[%clk 0:00:47]} 33. Ref1 {[%clk 0:00:21.7]} 33...
Nd6 {[%clk 0:00:41.8]} 34. Nxd6 {[%clk 0:00:17.9]} 34... Qxd6 {[%clk 0:00:43.7]}
35. Qe4 {[%clk 0:00:18.6]} 35... Qe7 {[%clk 0:00:31.7]} 36. Bxe5 {[%clk
0:00:16.9]} 36... Qf7 {[%clk 0:00:27.6]} 37. Bg3 {[%clk 0:00:16.6]} 37... Kh8
{[%clk 0:00:25]} 38. Be5+ {[%clk 0:00:17.4]} 38... Kh7 {[%clk 0:00:20.8]} 39.
Bg3 {[%clk 0:00:17.7]} 39... Qg6 {[%clk 0:00:20.9]} 40. Be5 {[%clk 0:00:17.1]}
40... Qf7 {[%clk 0:00:21.9]} 41. Bg3 {[%clk 0:00:17.7]} 1/2-1/2

[Event "*** Titled Tuesday 3|2 Blitz"]
[Site "Chess.com"]
[Date "2017.06.06"]
[Round "5"]
[White "Quiet_Desperation"]
[Black "TrickyTrapChess"]
[Result "1-0"]
[WhiteElo "1981"]
[BlackElo "2267"]
[TimeControl "180+2"]
[EndTime "14:52:16 PDT"]
[Termination "Quiet_Desperation won by resignation"]

1. e4 {[%clk 0:03:01.9]} 1... e6 {[%clk 0:02:58.3]} 2. d4 {[%clk 0:03:01.1]}
2... d5 {[%clk 0:02:58.9]} 3. Nc3 {[%clk 0:03:00.3]} 3... Nf6 {[%clk 0:02:58.9]}
4. e5 {[%clk 0:03:00.4]} 4... Nfd7 {[%clk 0:02:58.8]} 5. f4 {[%clk 0:02:56.2]}
5... c5 {[%clk 0:02:58.1]} 6. Nf3 {[%clk 0:02:46.6]} 6... Nc6 {[%clk 0:02:57.2]}
7. Be3 {[%clk 0:02:42]} 7... a6 {[%clk 0:02:56.3]} 8. Qd2 {[%clk 0:02:41]} 8...
b5 {[%clk 0:02:55.6]} 9. dxc5 {[%clk 0:02:39.7]} 9... Bxc5 {[%clk 0:02:54.6]}
10. O-O-O {[%clk 0:02:38.2]} 10... Qb6 {[%clk 0:02:51]} 11. Nd4 {[%clk 0:02:26]}
11... O-O {[%clk 0:02:48.3]} 12. Kb1 {[%clk 0:02:24.5]} 12... Bb7 {[%clk
0:02:43.4]} 13. h4 {[%clk 0:02:21.8]} 13... Bxd4 {[%clk 0:02:41.9]} 14. Bxd4
{[%clk 0:02:20.7]} 14... Nxd4 {[%clk 0:02:43.3]} 15. Qxd4 {[%clk 0:02:21.8]}
15... Rfc8 {[%clk 0:02:40.8]} 16. Qxb6 {[%clk 0:02:07.6]} 16... Nxb6 {[%clk
0:02:40.5]} 17. Ne2 {[%clk 0:02:05.8]} 17... b4 {[%clk 0:02:38.2]} 18. Nd4
{[%clk 0:02:05.3]} 18... a5 {[%clk 0:02:38.2]} 19. g4 {[%clk 0:02:04.5]} 19...
Nc4 {[%clk 0:02:37.1]} 20. Rh3 {[%clk 0:02:02.8]} 20... a4 {[%clk 0:02:30.8]}
21. g5 {[%clk 0:02:02.2]} 21... Ba6 {[%clk 0:02:19.7]} 22. Rg3 {[%clk
0:01:59.3]} 22... a3 {[%clk 0:02:18.5]} 23. b3 {[%clk 0:01:58]} 23... Na5 {[%clk
0:02:12.6]} 24. Bh3 {[%clk 0:01:57.2]} 24... Re8 {[%clk 0:02:06.1]} 25. h5
{[%clk 0:01:49.8]} 25... g6 {[%clk 0:02:04.3]} 26. hxg6 {[%clk 0:01:45.2]} 26...
hxg6 {[%clk 0:02:03.6]} 27. Rh1 {[%clk 0:01:45.7]} 27... Kg7 {[%clk 0:02:01.8]}
28. Bxe6 {[%clk 0:01:45.4]} 28... Rh8 {[%clk 0:01:50.5]} 29. Rgh3 {[%clk
0:01:43.6]} 29... Rxh3 {[%clk 0:01:48.2]} 30. Bxh3 {[%clk 0:01:42.2]} 30... Nb7
{[%clk 0:01:39.4]} 31. Nc6 {[%clk 0:01:40.4]} 31... Nc5 {[%clk 0:01:38.2]} 32.
Bg2 {[%clk 0:01:38.8]} 32... d4 {[%clk 0:01:35]} 33. Nxd4 {[%clk 0:01:34.2]}
33... Rd8 {[%clk 0:01:33.7]} 34. Rd1 {[%clk 0:01:33.3]} 34... Rh8 {[%clk
0:01:31.8]} 35. Kc1 {[%clk 0:01:32.2]} 35... Rh2 {[%clk 0:01:29.1]} 36. Rd2
{[%clk 0:01:33.4]} 36... Bc8 {[%clk 0:01:23.1]} 37. Nc6 {[%clk 0:01:31.3]} 37...
Bf5 {[%clk 0:01:13]} 38. Bd5 {[%clk 0:01:25.3]} 38... Rh4 {[%clk 0:01:11.4]} 39.
Rd4 {[%clk 0:01:17.7]} 39... Rh2 {[%clk 0:01:09.1]} 40. Nxb4 {[%clk 0:01:15.9]}
40... Rf2 {[%clk 0:01:01.6]} 41. Rc4 {[%clk 0:01:05.4]} 41... Rf1+ {[%clk
0:01:00.4]} 42. Kd2 {[%clk 0:01:04.1]} 42... Ne6 {[%clk 0:01:01.6]} 43. Bxe6
{[%clk 0:00:59.5]} 43... Bxe6 {[%clk 0:00:58.1]} 44. Rd4 {[%clk 0:00:59.6]}
44... Rf2+ {[%clk 0:00:51.5]} 45. Kd3 {[%clk 0:00:55.6]} 45... Rh2 {[%clk
0:00:50.2]} 46. c4 {[%clk 0:00:54.8]} 46... Bf5+ {[%clk 0:00:48.2]} 47. Ke3
{[%clk 0:00:52.4]} 47... Rb2 {[%clk 0:00:40.4]} 48. c5 {[%clk 0:00:50.2]} 48...
Rg2 {[%clk 0:00:38.1]} 49. c6 {[%clk 0:00:47.4]} 49... Rg3+ {[%clk 0:00:38.3]}
50. Kd2 {[%clk 0:00:46.4]} 50... Rg2+ {[%clk 0:00:38.3]} 51. Kc3 {[%clk
0:00:45]} 51... Rg3+ {[%clk 0:00:38.9]} 52. Kc4 {[%clk 0:00:42.3]} 52... Rg1
{[%clk 0:00:37.7]} 53. Kb5 {[%clk 0:00:41.2]} 1-0

[Event "*** Titled Tuesday 3|2 Blitz"]
[Site "Chess.com"]
[Date "2017.06.06"]
[Round "5"]
[White "viggi38"]
[Black "IMRosen"]
[Result "0-1"]
[WhiteElo "2147"]
[BlackElo "2238"]
[TimeControl "180+2"]
[EndTime "14:52:22 PDT"]
[Termination "IMRosen won by checkmate"]

1. d4 {[%clk 0:03:02]} 1... Nf6 {[%clk 0:03:00.8]} 2. c4 {[%clk 0:03:01.9]} 2...
e5 {[%clk 0:03:01.9]} 3. dxe5 {[%clk 0:03:01.8]} 3... Ng4 {[%clk 0:03:03]} 4.
Bf4 {[%clk 0:03:02.6]} 4... Bb4+ {[%clk 0:03:02.6]} 5. Nc3 {[%clk 0:03:02.4]}
5... Bxc3+ {[%clk 0:03:01.9]} 6. bxc3 {[%clk 0:03:04.3]} 6... Nc6 {[%clk
0:03:03.5]} 7. Qd5 {[%clk 0:02:48.3]} 7... Qe7 {[%clk 0:03:03.1]} 8. Nf3 {[%clk
0:02:47.5]} 8... Qa3 {[%clk 0:03:04.1]} 9. Qd2 {[%clk 0:02:19.5]} 9... Qa5
{[%clk 0:03:03.2]} 10. e3 {[%clk 0:01:56.2]} 10... Ngxe5 {[%clk 0:03:03.4]} 11.
Nxe5 {[%clk 0:01:54]} 11... Nxe5 {[%clk 0:03:05.3]} 12. Be2 {[%clk 0:01:54.2]}
12... O-O {[%clk 0:03:01.7]} 13. O-O {[%clk 0:01:54]} 13... Re8 {[%clk
0:02:59.5]} 14. Rab1 {[%clk 0:01:52.2]} 14... d6 {[%clk 0:02:57.8]} 15. Rb5
{[%clk 0:01:50.3]} 15... Qa3 {[%clk 0:02:52.6]} 16. Rfb1 {[%clk 0:01:43.2]}
16... Nc6 {[%clk 0:02:27.2]} 17. Bd1 {[%clk 0:00:58.5]} 17... b6 {[%clk
0:02:12.8]} 18. R5b3 {[%clk 0:00:51.1]} 18... Qa6 {[%clk 0:01:59.5]} 19. Be2
{[%clk 0:00:45.8]} 19... Na5 {[%clk 0:01:36.6]} 20. Rb4 {[%clk 0:00:26.7]} 20...
Bf5 {[%clk 0:01:26.7]} 21. c5 {[%clk 0:00:25.1]} 21... Qc8 {[%clk 0:01:24]} 22.
cxd6 {[%clk 0:00:22.9]} 22... cxd6 {[%clk 0:01:23.6]} 23. Rd1 {[%clk 0:00:22.5]}
23... Rd8 {[%clk 0:01:03.3]} 24. Bf3 {[%clk 0:00:19]} 24... Rb8 {[%clk
0:01:02.6]} 25. e4 {[%clk 0:00:18.6]} 25... Be6 {[%clk 0:01:01.8]} 26. Rd4
{[%clk 0:00:19]} 26... Nc4 {[%clk 0:01:02]} 27. Qe2 {[%clk 0:00:19.5]} 27... b5
{[%clk 0:01:02.9]} 28. Bxd6 {[%clk 0:00:19.5]} 28... Nxd6 {[%clk 0:01:03]} 29.
Rxd6 {[%clk 0:00:21.4]} 29... Rxd6 {[%clk 0:01:04.8]} 30. Rxd6 {[%clk
0:00:22.9]} 30... Qxc3 {[%clk 0:01:04.6]} 31. g3 {[%clk 0:00:23.6]} 31... Qc5
{[%clk 0:00:58.8]} 32. e5 {[%clk 0:00:22.5]} 32... Rc8 {[%clk 0:00:53.9]} 33.
Kg2 {[%clk 0:00:22.2]} 33... a5 {[%clk 0:00:54.6]} 34. Qd2 {[%clk 0:00:22.4]}
34... a4 {[%clk 0:00:29.4]} 35. Bb7 {[%clk 0:00:20.8]} 35... Rf8 {[%clk
0:00:29]} 36. Bf3 {[%clk 0:00:20.2]} 36... Qxe5 {[%clk 0:00:28.2]} 37. Rb6
{[%clk 0:00:20.6]} 37... Qc5 {[%clk 0:00:26.6]} 38. Qa5 {[%clk 0:00:19.2]} 38...
Bc4 {[%clk 0:00:26.2]} 39. Qa7 {[%clk 0:00:18.4]} 39... Qe5 {[%clk 0:00:24.9]}
40. Rc6 {[%clk 0:00:14.7]} 40... Qa1 {[%clk 0:00:25.1]} 41. Qb7 {[%clk
0:00:13.8]} 41... Qf1# {[%clk 0:00:23.5]} 0-1

[Event "*** Titled Tuesday 3|2 Blitz"]
[Site "Chess.com"]
[Date "2017.06.06"]
[Round "5"]
[White "temiksmozg"]
[Black "Spartakus1975"]
[Result "0-1"]
[WhiteElo "2449"]
[BlackElo "2601"]
[TimeControl "180+2"]
[EndTime "14:52:28 PDT"]
[Termination "Spartakus1975 won by resignation"]

1. d4 {[%clk 0:02:53.1]} 1... d5 {[%clk 0:02:58.9]} 2. c4 {[%clk 0:02:54.4]}
2... c6 {[%clk 0:02:59.6]} 3. Nf3 {[%clk 0:02:54.6]} 3... Nf6 {[%clk 0:03:00.6]}
4. Nc3 {[%clk 0:02:54.3]} 4... a6 {[%clk 0:03:01.3]} 5. c5 {[%clk 0:02:55.7]}
5... Bf5 {[%clk 0:03:01.5]} 6. Bf4 {[%clk 0:02:55.2]} 6... Nbd7 {[%clk
0:03:01.2]} 7. h3 {[%clk 0:02:54.3]} 7... g6 {[%clk 0:02:55]} 8. e3 {[%clk
0:02:51.1]} 8... Bg7 {[%clk 0:02:55.2]} 9. Nd2 {[%clk 0:02:47.5]} 9... O-O
{[%clk 0:02:40.9]} 10. g4 {[%clk 0:02:48.5]} 10... Be6 {[%clk 0:02:42]} 11. Bg3
{[%clk 0:02:49]} 11... b6 {[%clk 0:02:38.8]} 12. cxb6 {[%clk 0:02:35.4]} 12...
Qxb6 {[%clk 0:02:39]} 13. Qb3 {[%clk 0:02:36.4]} 13... Qa7 {[%clk 0:02:37.9]}
14. Qa3 {[%clk 0:02:25.9]} 14... c5 {[%clk 0:02:34.3]} 15. Nb3 {[%clk
0:02:27.2]} 15... Rfc8 {[%clk 0:02:27.9]} 16. Bg2 {[%clk 0:02:06.4]} 16... a5
{[%clk 0:01:54.3]} 17. Na4 {[%clk 0:01:48]} 17... Ne4 {[%clk 0:01:17.6]} 18.
Bxe4 {[%clk 0:01:45.3]} 18... dxe4 {[%clk 0:01:18.4]} 19. Nbxc5 {[%clk
0:01:46.5]} 19... Nxc5 {[%clk 0:01:19]} 20. Nxc5 {[%clk 0:01:48.2]} 20... Bc4
{[%clk 0:01:18.1]} 21. Rc1 {[%clk 0:01:40.4]} 21... Bb5 {[%clk 0:01:11.5]} 22.
Qb3 {[%clk 0:01:33.6]} 22... Ba6 {[%clk 0:01:10.8]} 23. Qd5 {[%clk 0:01:20.4]}
23... e5 {[%clk 0:01:08.4]} 24. Bxe5 {[%clk 0:01:12.6]} 24... Bb7 {[%clk
0:01:03.3]} 25. Qd6 {[%clk 0:00:55.2]} 25... Rc6 {[%clk 0:01:03.6]} 26. Qe7
{[%clk 0:00:51.4]} 26... Bxe5 {[%clk 0:01:02.3]} 27. Qxe5 {[%clk 0:00:53.3]}
27... Ba6 {[%clk 0:00:56.6]} 28. Qxe4 {[%clk 0:00:45.6]} 28... Rac8 {[%clk
0:00:55.9]} 29. f3 {[%clk 0:00:40.1]} 29... Qb8 {[%clk 0:00:44.4]} 30. Kf2
{[%clk 0:00:36.8]} 30... Qxb2+ {[%clk 0:00:40.2]} 31. Rc2 {[%clk 0:00:34.2]}
31... Qa3 {[%clk 0:00:36.8]} 32. Rhc1 {[%clk 0:00:34.5]} 32... Bd3 {[%clk
0:00:37.6]} 33. Nxd3 {[%clk 0:00:20.9]} 33... Rxc2+ {[%clk 0:00:37.6]} 34. Rxc2
{[%clk 0:00:22.8]} 34... Rxc2+ {[%clk 0:00:38.3]} 35. Kg3 {[%clk 0:00:23.8]}
35... Qd6+ {[%clk 0:00:26.1]} 36. f4 {[%clk 0:00:22.6]} 36... Rxa2 {[%clk
0:00:24.4]} 37. Qe8+ {[%clk 0:00:19.2]} 37... Kg7 {[%clk 0:00:25.4]} 38. Ne5
{[%clk 0:00:21]} 38... Qe6 {[%clk 0:00:19.3]} 39. h4 {[%clk 0:00:09.9]} 39...
Qxe8 {[%clk 0:00:19.4]} 0-1

[Event "*** Titled Tuesday 3|2 Blitz"]
[Site "Chess.com"]
[Date "2017.06.06"]
[Round "5"]
[White "GMAkobianSTL"]
[Black "Ginger_GM"]
[Result "0-1"]
[WhiteElo "2559"]
[BlackElo "2435"]
[TimeControl "180+2"]
[EndTime "14:52:42 PDT"]
[Termination "Ginger_GM won on time"]

1. d4 {[%clk 0:03:02]} 1... e6 {[%clk 0:03:00.3]} 2. c4 {[%clk 0:03:01.2]} 2...
f5 {[%clk 0:03:00.8]} 3. Nf3 {[%clk 0:03:00.3]} 3... Nf6 {[%clk 0:03:01.6]} 4.
g3 {[%clk 0:03:00.6]} 4... Be7 {[%clk 0:03:01.8]} 5. Bg2 {[%clk 0:03:00.8]} 5...
O-O {[%clk 0:03:02.3]} 6. O-O {[%clk 0:03:01.9]} 6... d6 {[%clk 0:03:02.6]} 7.
Nc3 {[%clk 0:03:02.6]} 7... Ne4 {[%clk 0:03:01.3]} 8. Qc2 {[%clk 0:03:02.3]}
8... Nxc3 {[%clk 0:03:01.3]} 9. bxc3 {[%clk 0:03:03.5]} 9... Nc6 {[%clk
0:03:01.6]} 10. Rb1 {[%clk 0:03:04.1]} 10... e5 {[%clk 0:03:02.1]} 11. Rd1
{[%clk 0:02:56.3]} 11... Qe8 {[%clk 0:03:01.9]} 12. c5 {[%clk 0:02:56.4]} 12...
e4 {[%clk 0:02:55.6]} 13. cxd6 {[%clk 0:02:55.1]} 13... cxd6 {[%clk 0:02:50.4]}
14. Nd2 {[%clk 0:02:55.4]} 14... d5 {[%clk 0:02:41]} 15. e3 {[%clk 0:02:55.9]}
15... b6 {[%clk 0:02:38.2]} 16. c4 {[%clk 0:02:56.1]} 16... Be6 {[%clk
0:02:38.1]} 17. c5 {[%clk 0:02:48.2]} 17... bxc5 {[%clk 0:02:31.5]} 18. dxc5
{[%clk 0:02:46.9]} 18... d4 {[%clk 0:02:32.5]} 19. Bb2 {[%clk 0:02:32.6]} 19...
d3 {[%clk 0:02:26.5]} 20. Qa4 {[%clk 0:02:29.2]} 20... Rc8 {[%clk 0:02:20.6]}
21. Nb3 {[%clk 0:02:26.7]} 21... Bf6 {[%clk 0:02:17.4]} 22. Bxf6 {[%clk
0:02:20]} 22... Rxf6 {[%clk 0:02:16]} 23. Rdc1 {[%clk 0:02:01]} 23... h5 {[%clk
0:02:12.8]} 24. h4 {[%clk 0:01:59.9]} 24... Rf8 {[%clk 0:02:04.6]} 25. Nd2
{[%clk 0:01:40.4]} 25... Ne5 {[%clk 0:02:00.3]} 26. Qxa7 {[%clk 0:01:36.3]}
26... Ra8 {[%clk 0:01:49.2]} 27. Qc7 {[%clk 0:01:35.8]} 27... Bxa2 {[%clk
0:01:41.8]} 28. Ra1 {[%clk 0:01:31.3]} 28... Bd5 {[%clk 0:01:39.8]} 29. Rxa8
{[%clk 0:01:28.4]} 29... Bxa8 {[%clk 0:01:39.3]} 30. Rb1 {[%clk 0:01:28.6]}
30... Bd5 {[%clk 0:01:20.4]} 31. Bh3 {[%clk 0:01:04.5]} 31... g6 {[%clk
0:00:52.3]} 32. Rb6 {[%clk 0:01:02.5]} 32... Nc6 {[%clk 0:00:41.6]} 33. Qd6
{[%clk 0:01:01.2]} 33... Ne7 {[%clk 0:00:25.5]} 34. Bf1 {[%clk 0:00:44.5]} 34...
Bf7 {[%clk 0:00:25.7]} 35. Rb7 {[%clk 0:00:43.5]} 35... Nd5 {[%clk 0:00:25.7]}
36. c6 {[%clk 0:00:42.8]} 36... Qe6 {[%clk 0:00:25.3]} 37. Qc5 {[%clk
0:00:38.2]} 37... Rc8 {[%clk 0:00:25.3]} 38. c7 {[%clk 0:00:36]} 38... Qe7
{[%clk 0:00:24.4]} 39. Rb8 {[%clk 0:00:34.4]} 39... Qxc5 {[%clk 0:00:19.3]} 40.
Rxc8+ {[%clk 0:00:19.4]} 40... Kg7 {[%clk 0:00:19.9]} 41. Nb3 {[%clk 0:00:04.6]}
41... Qc3 {[%clk 0:00:20.4]} 0-1

[Event "*** Titled Tuesday 3|2 Blitz"]
[Site "Chess.com"]
[Date "2017.06.06"]
[Round "5"]
[White "H16"]
[Black "Abrito99"]
[Result "1-0"]
[WhiteElo "2300"]
[BlackElo "2321"]
[TimeControl "180+2"]
[EndTime "14:52:44 PDT"]
[Termination "H16 won by resignation"]

1. d4 {[%clk 0:03:02]} 1... Nf6 {[%clk 0:02:56]} 2. c4 {[%clk 0:03:02.8]} 2...
e6 {[%clk 0:02:55.5]} 3. Nf3 {[%clk 0:03:03.7]} 3... b6 {[%clk 0:02:55.8]} 4. g3
{[%clk 0:03:04.7]} 4... Bb7 {[%clk 0:02:57.2]} 5. Bg2 {[%clk 0:03:05.9]} 5...
Be7 {[%clk 0:02:58.7]} 6. O-O {[%clk 0:03:06.9]} 6... O-O {[%clk 0:03:00.4]} 7.
Nc3 {[%clk 0:03:07.5]} 7... Ne4 {[%clk 0:02:51.9]} 8. Qc2 {[%clk 0:03:08.6]}
8... Nxc3 {[%clk 0:02:51.4]} 9. Qxc3 {[%clk 0:03:10.5]} 9... f5 {[%clk
0:02:52.9]} 10. Rd1 {[%clk 0:02:53.7]} 10... Bf6 {[%clk 0:02:49.9]} 11. b3
{[%clk 0:02:49.6]} 11... d6 {[%clk 0:02:49.4]} 12. Ba3 {[%clk 0:02:14.7]} 12...
Nd7 {[%clk 0:02:49.7]} 13. Qe3 {[%clk 0:02:15.6]} 13... Re8 {[%clk 0:02:42.3]}
14. Rac1 {[%clk 0:02:16.6]} 14... Be4 {[%clk 0:01:44.2]} 15. c5 {[%clk
0:01:28.7]} 15... bxc5 {[%clk 0:01:35.9]} 16. dxc5 {[%clk 0:01:29.6]} 16... d5
{[%clk 0:01:37.5]} 17. Nd4 {[%clk 0:01:30.3]} 17... Bg5 {[%clk 0:01:32.5]} 18.
f4 {[%clk 0:01:28.4]} 18... Bf6 {[%clk 0:01:32.5]} 19. Bxe4 {[%clk 0:01:13.4]}
19... fxe4 {[%clk 0:01:32.6]} 20. f5 {[%clk 0:01:07.9]} 20... Bg5 {[%clk
0:01:19]} 21. Qc3 {[%clk 0:00:58.2]} 21... exf5 {[%clk 0:00:36]} 22. e3 {[%clk
0:00:52.6]} 22... Ne5 {[%clk 0:00:31.4]} 23. Nxf5 {[%clk 0:00:48]} 23... Qf6
{[%clk 0:00:22]} 24. Nd4 {[%clk 0:00:43.6]} 24... Nd3 {[%clk 0:00:19.2]} 25. Re1
{[%clk 0:00:25.2]} 25... Qf2+ {[%clk 0:00:12.6]} 26. Kh1 {[%clk 0:00:26.4]}
26... Nxe1 {[%clk 0:00:10.4]} 27. Rxe1 {[%clk 0:00:23.2]} 27... Bxe3 {[%clk
0:00:10.9]} 28. Qxe3 {[%clk 0:00:22.2]} 28... Qxe3 {[%clk 0:00:07.3]} 29. Rxe3
{[%clk 0:00:24.1]} 29... Rf8 {[%clk 0:00:07.9]} 30. Kg2 {[%clk 0:00:22.7]} 30...
Rf7 {[%clk 0:00:09.3]} 31. Bb2 {[%clk 0:00:11.4]} 31... Raf8 {[%clk 0:00:10.2]}
32. Re2 {[%clk 0:00:13]} 32... Re8 {[%clk 0:00:08.9]} 33. c6 {[%clk 0:00:11.8]}
33... Rf6 {[%clk 0:00:07.4]} 34. b4 {[%clk 0:00:12.8]} 34... Rb8 {[%clk
0:00:06.7]} 35. b5 {[%clk 0:00:13.5]} 35... Rff8 {[%clk 0:00:04.5]} 36. a4
{[%clk 0:00:14.7]} 36... Ra8 {[%clk 0:00:03.9]} 37. Ne6 {[%clk 0:00:15.7]} 37...
Rf7 {[%clk 0:00:05.3]} 38. Rd2 {[%clk 0:00:10.3]} 38... Raf8 {[%clk 0:00:06.4]}
39. Nxf8 {[%clk 0:00:10.8]} 39... e3 {[%clk 0:00:06.7]} 40. Re2 {[%clk
0:00:11.3]} 1-0